{"text_format":"1","workbook":"xlsx","n_sheets":20,"sheets":["البيانات الأساسية","بيانات الطلاب","بيانات الفصول","1","2","3","4","5","6","7","8","9","10","11","12","13","14","15","16","17"],"not_rendered":{"charts":0,"images":3,"macros":1,"external_links":0,"defined_names":183,"comments":0,"pivot_tables":0},"unopened":[],"bounds":{"document_bytes":16777216,"sheet_cells":100000,"rows_first":2000,"rows_last":500,"rows_between":2000,"halvings":0,"cell_chars":16384,"cell_head_chars":4096},"cells_cut":0,"cells_raw":0,"read":"whole","date_system":"1900"}

{"sheet":"البيانات الأساسية","index":0,"n_rows":22,"n_cols":6,"rows_kept":22,"cut":false,"hidden":false,"merged":[[17,9,17,12],[19,9,19,12],[21,9,21,12],[13,2,13,4],[15,2,15,4],[17,2,17,4],[19,2,19,4],[7,9,7,12],[9,9,9,12],[11,9,11,12],[13,9,13,12],[15,9,15,12],[2,5,4,8],[7,2,7,4],[9,2,9,4],[11,2,11,4],[21,2,21,4]]}
[]
[]
[null,null,null,null,null,"البيانات الأساسية"]
[]
[]
[]
[]
[null,null,"المحافظة"]
[]
[null,null,"المديرية"]
[]
[null,null,"الإدارة التعليمية"]
[]
[null,null,"المدرسة"]
[]
[null,null,"الصف"]
[]
[null,null,"العام الدراسى"]
[]
[null,null,"مسئول شئون الطلاب"]
[]
[null,null,"مدير المدرسة"]

{"sheet":"بيانات الطلاب","index":1,"n_rows":635,"n_cols":30,"rows_kept":635,"cut":false,"hidden":false,"merged":[[5,4,9,5],[5,11,5,13],[17,8,17,10],[17,13,17,15],[41,8,41,10],[41,13,41,15],[49,8,49,10],[49,13,49,15],[25,8,25,10],[25,13,25,15],[33,8,33,10],[33,13,33,15],[81,10,81,12],[57,8,57,10],[57,13,57,15],[65,8,65,10],[65,13,65,15],[73,8,73,10],[73,13,73,15]]}
[null,null,null,null,null,null,null,null,null,null,null,null,null,null,null,null,null,null,null,null,null,null,null,null,null,null,"ذكر","مسلم","مستجد",1]
[null,null,null,null,null,null,null,null,null,null,null,null,null,null,null,null,null,null,null,null,null,null,null,null,null,null,"أنثى","مسلمة","مستجدة",2]
[null,null,{"$f":"Roma1","v":0},null,null,null,null,null,null,null,null,null,null,null,null,null,null,null,null,null,null,null,null,null,null,null,null,"مسيحي","باق",3]
[null,null,null,null,null,null,null,null,null,null,null,null,null,null,null,null,null,null,null,null,null,null,null,null,null,null,null,"مسيحية","باقية",4]
[null,null,{"$f":"Roma2","v":0},null,null,null,null,null,null,null,null,null,null,null,null,null,null,null,null,null,null,null,null,null,null,null,null,null,null,5]
[null,null,null,null,"بيانات الطلاب",null,null,null,null,null,null,"الإحصاء العام",null,null,null,null,null,null,null,null,null,null,null,null,null,null,null,null,null,6]
[null,null,{"$f":"Roma3","v":0},null,null,null,null,null,null,null,null,null,null,null,null,null,null,null,null,null,null,null,null,null,null,null,null,null,null,7]
[null,null,null,null,null,null,null,null,null,null,null,"بنون","بنات","الجملة",null,null,null,null,null,null,null,null,null,null,null,null,null,null,null,8]
[null,null,{"$f":"Roma4","v":0},null,null,null,null,null,null,null,null,{"$f":"ذ1+ذ2+ذ3+ذ4+ذ5+ذ6+ذ7+ذ8+ذ9+ذ10+ذ11+ذ12+ذ13+ذ14+ذ15+ذ16+ذ17","v":0},{"$f":"ث1+ث2+ث3+ث4+ث5+ث6+ث7+ث8+ث9+ث10+ث11+ث12+ث13+ث14+ث15+ث16+ث17","v":0},{"$f":"L9+M9","v":0},null,null,null,null,null,null,null,null,null,null,null,null,null,null,null,9]
[null,null,null,null,null,null,null,null,null,null,null,"مستجد","باق","الجملة",null,null,null,null,null,null,null,null,null,null,null,null,null,null,null,10]
[null,null,{"$f":"Roma5","v":0},null,null,null,null,null,null,null,null,{"$f":"ج1+ج2+ج3+ج4+ج5+ج6+ج7+ج8+ج9+ج10+ج11+ج12+ج13+ج14+ج15+ج16+ج17","v":0},{"$f":"ق1+ق2+ق3+ق4+ق5+ق6+ق7+ق8+ق9+ق10+ق11+ق12+ق13+ق14+ق15+ق16+ق17","v":0},{"$f":"L11+M11","v":0},null,null,null,null,null,null,null,null,null,null,null,null,null,null,null,11]
[null,null,null,null,null,null,null,null,null,null,null,"مسلم","مسيحي","الجملة",null,null,null,null,null,null,null,null,null,null,null,null,null,null,null,12]
[null,null,{"$f":"Roma6","v":0},null,null,null,null,null,null,null,null,{"$f":"س1+س2+س3+س4+س5+س6+س7+س8+س9+س10+س11+س12+س13+س14+س15+س16+س17","v":0},{"$f":"ن1+ن2+ن3+ن4+ن5+ن6+ن7+ن8+ن9+ن10+ن11+ن12+ن13+ن14+ن15+ن16+ن17","v":0},{"$f":"L13+M13","v":0},null,null,null,null,null,null,null,null,null,null,null,null,null,null,null,13]
[null,null,null,null,null,null,null,null,null,null,null,null,null,null,null,null,null,null,null,null,null,null,null,null,null,null,null,null,null,14]
[null,null,null,null,null,null,null,null,null,null,null,null,null,null,null,null,null,null,null,null,null,null,null,null,null,null,null,null,null,15]
[null,"م","الاسم","النوع","الديانة","الحالة","الفصل",null,null,null,null,null,null,null,null,null,null,null,null,null,null,null,null,null,null,null,null,null,null,16]
[null,{"$f":"IF(C17=\"\",\"\",ROW()-16)","v":""},null,null,null,null,null,null,null,null,null,null,null,null,null,null,null,null,null,null,null,null,null,null,null,null,null,null,null,17]
[null,{"$f":"IF(C18=\"\",\"\",ROW()-16)","v":""},null,null,null,null,null,null,"إحصاء فصل ( 1 / 1 )",null,null,null,null,"إحصاء فصل ( 1 / 2 )"]
[null,{"$f":"IF(C19=\"\",\"\",ROW()-16)","v":""},null,null,null,null,null,null,"بنون","بنات","الجملة",null,null,"بنون","بنات","الجملة"]
[null,"",null,null,null,null,null,null,{"$f":"ذ1","v":0},{"$f":"ث1","v":0},{"$f":"جم1","v":0},null,null,{"$f":"ذ2","v":0},{"$f":"ث2","v":0},{"$f":"جم4","v":0}]
[null,"",null,null,null,null,null,null,"مستجد","باق","الجملة",null,null,"مستجد","باق","الجملة"]
[null,"",null,null,null,null,null,null,{"$f":"ج1","v":0},{"$f":"ق1","v":0},{"$f":"جم2","v":0},null,null,{"$f":"ج2","v":0},{"$f":"ق2","v":0},{"$f":"جم5","v":0}]
[null,"",null,null,null,null,null,null,"مسلم","مسيحي","الجملة",null,null,"مسلم","مسيحي","الجملة"]
[null,"",null,null,null,null,null,null,{"$f":"س1","v":0},{"$f":"ن1","v":0},{"$f":"جم3","v":0},null,null,{"$f":"س2","v":0},{"$f":"ن2","v":0},{"$f":"جم6","v":0}]
[null,""]
[null,"",null,null,null,null,null,null,"إحصاء فصل ( 1 / 3 )",null,null,null,null,"إحصاء فصل ( 1 / 4 )"]
[null,"",null,null,null,null,null,null,"بنون","بنات","الجملة",null,null,"بنون","بنات","الجملة"]
[null,"",null,null,null,null,null,null,{"$f":"ذ3","v":0},{"$f":"ث3","v":0},{"$f":"جم7","v":0},null,null,{"$f":"ذ4","v":0},{"$f":"ث4","v":0},{"$f":"جم10","v":0}]
[null,"",null,null,null,null,null,null,"مستجد","باق","الجملة",null,null,"مستجد","باق","الجملة"]
[null,"",null,null,null,null,null,null,{"$f":"ج3","v":0},{"$f":"ق3","v":0},{"$f":"جم8","v":0},null,null,{"$f":"ج4","v":0},{"$f":"ق4","v":0},{"$f":"جم11","v":0}]
[null,"",null,null,null,null,null,null,"مسلم","مسيحي","الجملة",null,null,"مسلم","مسيحي","الجملة"]
[null,"",null,null,null,null,null,null,{"$f":"س3","v":0},{"$f":"ن3","v":0},{"$f":"جم9","v":0},null,null,{"$f":"س4","v":0},{"$f":"ن4","v":0},{"$f":"جم12","v":0}]
[null,""]
[null,"",null,null,null,null,null,null,"إحصاء فصل ( 1 / 5 )",null,null,null,null,"إحصاء فصل ( 1 / 6 )"]
[null,"",null,null,null,null,null,null,"بنون","بنات","الجملة",null,null,"بنون","بنات","الجملة"]
[null,"",null,null,null,null,null,null,{"$f":"ذ5","v":0},{"$f":"ث5","v":0},{"$f":"جم13","v":0},null,null,{"$f":"ذ6","v":0},{"$f":"ث6","v":0},{"$f":"جم16","v":0}]
[null,"",null,null,null,null,null,null,"مستجد","باق","الجملة",null,null,"مستجد","باق","الجملة"]
[null,"",null,null,null,null,null,null,{"$f":"ج5","v":0},{"$f":"ق5","v":0},{"$f":"جم14","v":0},null,null,{"$f":"ج6","v":0},{"$f":"ق6","v":0},{"$f":"جم17","v":0}]
[null,"",null,null,null,null,null,null,"مسلم","مسيحي","الجملة",null,null,"مسلم","مسيحي","الجملة"]
[null,"",null,null,null,null,null,null,{"$f":"س5","v":0},{"$f":"ن5","v":0},{"$f":"جم15","v":0},null,null,{"$f":"س6","v":0},{"$f":"ن6","v":0},{"$f":"جم18","v":0}]
[null,""]
[null,"",null,null,null,null,null,null,"إحصاء فصل ( 1 / 7 )",null,null,null,null,"إحصاء فصل ( 1 / 8 )"]
[null,"",null,null,null,null,null,null,"بنون","بنات","الجملة",null,null,"بنون","بنات","الجملة"]
[null,"",null,null,null,null,null,null,{"$f":"ذ7","v":0},{"$f":"ث7","v":0},{"$f":"جم19","v":0},null,null,{"$f":"ذ8","v":0},{"$f":"ث8","v":0},{"$f":"جم22","v":0}]
[null,"",null,null,null,null,null,null,"مستجد","باق","الجملة",null,null,"مستجد","باق","الجملة"]
[null,"",null,null,null,null,null,null,{"$f":"ج7","v":0},{"$f":"ق7","v":0},{"$f":"جم20","v":0},null,null,{"$f":"ج8","v":0},{"$f":"ق8","v":0},{"$f":"جم23","v":0}]
[null,"",null,null,null,null,null,null,"مسلم","مسيحي","الجملة",null,null,"مسلم","مسيحي","الجملة"]
[null,"",null,null,null,null,null,null,{"$f":"س7","v":0},{"$f":"ن7","v":0},{"$f":"جم21","v":0},null,null,{"$f":"س8","v":0},{"$f":"ن8","v":0},{"$f":"جم24","v":0}]
[null,""]
[null,"",null,null,null,null,null,null,"إحصاء فصل ( 1 / 9 )",null,null,null,null,"إحصاء فصل ( 1 / 10 )"]
[null,"",null,null,null,null,null,null,"بنون","بنات","الجملة",null,null,"بنون","بنات","الجملة"]
[null,"",null,null,null,null,null,null,{"$f":"ذ9","v":0},{"$f":"ث9","v":0},{"$f":"جم25","v":0},null,null,{"$f":"ذ10","v":0},{"$f":"ث10","v":0},{"$f":"جم28","v":0}]
[null,"",null,null,null,null,null,null,"مستجد","باق","الجملة",null,null,"مستجد","باق","الجملة"]
[null,"",null,null,null,null,null,null,{"$f":"ج9","v":0},{"$f":"ق9","v":0},{"$f":"جم26","v":0},null,null,{"$f":"ج10","v":0},{"$f":"ق10","v":0},{"$f":"جم29","v":0}]
[null,"",null,null,null,null,null,null,"مسلم","مسيحي","الجملة",null,null,"مسلم","مسيحي","الجملة"]
[null,"",null,null,null,null,null,null,{"$f":"س9","v":0},{"$f":"ن9","v":0},{"$f":"جم27","v":0},null,null,{"$f":"س10","v":0},{"$f":"ن10","v":0},{"$f":"جم30","v":0}]
[null,""]
[null,"",null,null,null,null,null,null,"إحصاء فصل ( 1 / 11 )",null,null,null,null,"إحصاء فصل ( 1 / 12 )"]
[null,"",null,null,null,null,null,null,"بنون","بنات","الجملة",null,null,"بنون","بنات","الجملة"]
[null,"",null,null,null,null,null,null,{"$f":"ذ11","v":0},{"$f":"ث11","v":0},{"$f":"جم31","v":0},null,null,{"$f":"ذ12","v":0},{"$f":"ث12","v":0},{"$f":"جم34","v":0}]
[null,"",null,null,null,null,null,null,"مستجد","باق","الجملة",null,null,"مستجد","باق","الجملة"]
[null,"",null,null,null,null,null,null,{"$f":"ج11","v":0},{"$f":"ق11","v":0},{"$f":"جم32","v":0},null,null,{"$f":"ج12","v":0},{"$f":"ق12","v":0},{"$f":"جم35","v":0}]
[null,"",null,null,null,null,null,null,"مسلم","مسيحي","الجملة",null,null,"مسلم","مسيحي","الجملة"]
[null,"",null,null,null,null,null,null,{"$f":"س11","v":0},{"$f":"ن11","v":0},{"$f":"جم33","v":0},null,null,{"$f":"س12","v":0},{"$f":"ن12","v":0},{"$f":"جم36","v":0}]
[null,""]
[null,"",null,null,null,null,null,null,"إحصاء فصل ( 1 / 13 )",null,null,null,null,"إحصاء فصل ( 1 / 14 )"]
[null,"",null,null,null,null,null,null,"بنون","بنات","الجملة",null,null,"بنون","بنات","الجملة"]
[null,"",null,null,null,null,null,null,{"$f":"ذ13","v":0},{"$f":"ث13","v":0},{"$f":"جم37","v":0},null,null,{"$f":"ذ14","v":0},{"$f":"ث14","v":0},{"$f":"جم40","v":0}]
[null,"",null,null,null,null,null,null,"مستجد","باق","الجملة",null,null,"مستجد","باق","الجملة"]
[null,"",null,null,null,null,null,null,{"$f":"ج13","v":0},{"$f":"ق13","v":0},{"$f":"جم38","v":0},null,null,{"$f":"ج14","v":0},{"$f":"ق14","v":0},{"$f":"جم41","v":0}]
[null,"",null,null,null,null,null,null,"مسلم","مسيحي","الجملة",null,null,"مسلم","مسيحي","الجملة"]
[null,"",null,null,null,null,null,null,{"$f":"س13","v":0},{"$f":"ن13","v":0},{"$f":"جم39","v":0},null,null,{"$f":"س14","v":0},{"$f":"ن14","v":0},{"$f":"جم42","v":0}]
[null,""]
[null,"",null,null,null,null,null,null,"إحصاء فصل ( 1 / 15 )",null,null,null,null,"إحصاء فصل ( 1 / 16 )"]
[null,"",null,null,null,null,null,null,"بنون","بنات","الجملة",null,null,"بنون","بنات","الجملة"]
[null,"",null,null,null,null,null,null,{"$f":"ذ15","v":0},{"$f":"ث15","v":0},{"$f":"جم43","v":0},null,null,{"$f":"ذ16","v":0},{"$f":"ث16","v":0},{"$f":"جم46","v":0}]
[null,"",null,null,null,null,null,null,"مستجد","باق","الجملة",null,null,"مستجد","باق","الجملة"]
[null,"",null,null,null,null,null,null,{"$f":"ج15","v":0},{"$f":"ق15","v":0},{"$f":"جم44","v":0},null,null,{"$f":"ج16","v":0},{"$f":"ق16","v":0},{"$f":"جم47","v":0}]
[null,"",null,null,null,null,null,null,"مسلم","مسيحي","الجملة",null,null,"مسلم","مسيحي","الجملة"]
[null,"",null,null,null,null,null,null,{"$f":"س15","v":0},{"$f":"ن15","v":0},{"$f":"جم45","v":0},null,null,{"$f":"س16","v":0},{"$f":"ن16","v":0},{"$f":"جم48","v":0}]
[null,""]
[null,"",null,null,null,null,null,null,null,null,"إحصاء فصل ( 1 / 17 )"]
[null,"",null,null,null,null,null,null,null,null,"بنون","بنات","الجملة"]
[null,"",null,null,null,null,null,null,null,null,{"$f":"ذ17","v":0},{"$f":"ث17","v":0},{"$f":"جم49","v":0}]
[null,"",null,null,null,null,null,null,null,null,"مستجد","باق","الجملة"]
[null,"",null,null,null,null,null,null,null,null,{"$f":"ج17","v":0},{"$f":"ق17","v":0},{"$f":"جم50","v":0}]
[null,"",null,null,null,null,null,null,null,null,"مسلم","مسيحي","الجملة"]
[null,"",null,null,null,null,null,null,null,null,{"$f":"س17","v":0},{"$f":"ن17","v":0},{"$f":"جم51","v":0}]
[null,""]
[null,""]
[null,""]
[null,""]
[null,""]
[null,""]
[null,""]
[null,""]
[null,""]
[null,""]
[null,""]
[null,""]
[null,""]
[null,""]
[null,""]
[null,""]
[null,""]
[null,""]
[null,""]
[null,""]
[null,""]
[null,""]
[null,""]
[null,""]
[null,""]
[null,""]
[null,""]
[null,""]
[null,""]
[null,""]
[null,""]
[null,""]
[null,""]
[null,""]
[null,""]
[null,""]
[null,""]
[null,""]
[null,""]
[null,""]
[null,""]
[null,""]
[null,""]
[null,""]
[null,""]
[null,""]
[null,""]
[null,""]
[null,""]
[null,""]
[null,""]
[null,""]
[null,""]
[null,""]
[null,""]
[null,""]
[null,""]
[null,""]
[null,""]
[null,""]
[null,""]
[null,""]
[null,""]
[null,""]
[null,""]
[null,""]
[null,""]
[null,""]
[null,""]
[null,""]
[null,""]
[null,""]
[null,""]
[null,""]
[null,""]
[null,""]
[null,""]
[null,""]
[null,""]
[null,""]
[null,""]
[null,""]
[null,""]
[null,""]
[null,""]
[null,""]
[null,""]
[null,""]
[null,""]
[null,""]
[null,""]
[null,""]
[null,""]
[null,""]
[null,""]
[null,""]
[null,""]
[null,""]
[null,""]
[null,""]
[null,""]
[null,""]
[null,""]
[null,""]
[null,""]
[null,""]
[null,""]
[null,""]
[null,""]
[null,""]
[null,""]
[null,""]
[null,""]
[null,{"$f":"IF(C202=\"\",\"\",ROW()-16)","v":""}]
[null,""]
[null,""]
[null,""]
[null,""]
[null,""]
[null,""]
[null,""]
[null,""]
[null,""]
[null,""]
[null,""]
[null,""]
[null,""]
[null,""]
[null,""]
[null,""]
[null,""]
[null,""]
[null,""]
[null,""]
[null,""]
[null,""]
[null,""]
[null,""]
[null,""]
[null,""]
[null,""]
[null,""]
[null,""]
[null,""]
[null,""]
[null,""]
[null,""]
[null,""]
[null,""]
[null,""]
[null,""]
[null,""]
[null,""]
[null,""]
[null,""]
[null,""]
[null,""]
[null,""]
[null,""]
[null,""]
[null,""]
[null,""]
[null,""]
[null,""]
[null,""]
[null,""]
[null,""]
[null,""]
[null,""]
[null,""]
[null,""]
[null,""]
[null,""]
[null,""]
[null,""]
[null,""]
[null,""]
[null,{"$f":"IF(C266=\"\",\"\",ROW()-16)","v":""}]
[null,""]
[null,""]
[null,""]
[null,""]
[null,""]
[null,""]
[null,""]
[null,""]
[null,""]
[null,""]
[null,""]
[null,""]
[null,""]
[null,""]
[null,""]
[null,""]
[null,""]
[null,""]
[null,""]
[null,""]
[null,""]
[null,""]
[null,""]
[null,""]
[null,""]
[null,""]
[null,""]
[null,""]
[null,""]
[null,""]
[null,""]
[null,""]
[null,""]
[null,""]
[null,""]
[null,""]
[null,""]
[null,""]
[null,""]
[null,""]
[null,""]
[null,""]
[null,""]
[null,""]
[null,""]
[null,""]
[null,""]
[null,""]
[null,""]
[null,""]
[null,""]
[null,""]
[null,""]
[null,""]
[null,""]
[null,""]
[null,""]
[null,""]
[null,""]
[null,""]
[null,""]
[null,""]
[null,""]
[null,{"$f":"IF(C330=\"\",\"\",ROW()-16)","v":""}]
[null,""]
[null,""]
[null,""]
[null,""]
[null,""]
[null,""]
[null,""]
[null,""]
[null,""]
[null,""]
[null,""]
[null,""]
[null,""]
[null,""]
[null,""]
[null,""]
[null,""]
[null,""]
[null,""]
[null,""]
[null,""]
[null,""]
[null,""]
[null,""]
[null,""]
[null,""]
[null,""]
[null,""]
[null,""]
[null,""]
[null,""]
[null,""]
[null,""]
[null,""]
[null,""]
[null,""]
[null,""]
[null,""]
[null,""]
[null,""]
[null,""]
[null,""]
[null,""]
[null,""]
[null,""]
[null,""]
[null,""]
[null,""]
[null,""]
[null,""]
[null,""]
[null,""]
[null,""]
[null,""]
[null,""]
[null,""]
[null,""]
[null,""]
[null,""]
[null,""]
[null,""]
[null,""]
[null,""]
[null,{"$f":"IF(C394=\"\",\"\",ROW()-16)","v":""}]
[null,""]
[null,""]
[null,""]
[null,""]
[null,""]
[null,""]
[null,""]
[null,""]
[null,""]
[null,""]
[null,""]
[null,""]
[null,""]
[null,""]
[null,""]
[null,""]
[null,""]
[null,""]
[null,""]
[null,""]
[null,""]
[null,""]
[null,""]
[null,""]
[null,""]
[null,""]
[null,""]
[null,""]
[null,""]
[null,""]
[null,""]
[null,""]
[null,""]
[null,""]
[null,""]
[null,""]
[null,""]
[null,""]
[null,""]
[null,""]
[null,""]
[null,""]
[null,""]
[null,""]
[null,""]
[null,""]
[null,""]
[null,""]
[null,""]
[null,""]
[null,""]
[null,""]
[null,""]
[null,""]
[null,""]
[null,""]
[null,""]
[null,""]
[null,""]
[null,""]
[null,""]
[null,""]
[null,""]
[null,{"$f":"IF(C458=\"\",\"\",ROW()-16)","v":""}]
[null,""]
[null,""]
[null,""]
[null,""]
[null,""]
[null,""]
[null,""]
[null,""]
[null,""]
[null,""]
[null,""]
[null,""]
[null,""]
[null,""]
[null,""]
[null,""]
[null,""]
[null,""]
[null,""]
[null,""]
[null,""]
[null,""]
[null,""]
[null,""]
[null,""]
[null,""]
[null,""]
[null,""]
[null,""]
[null,""]
[null,""]
[null,""]
[null,""]
[null,""]
[null,""]
[null,""]
[null,""]
[null,""]
[null,""]
[null,""]
[null,""]
[null,""]
[null,""]
[null,""]
[null,""]
[null,""]
[null,""]
[null,""]
[null,""]
[null,""]
[null,""]
[null,""]
[null,""]
[null,""]
[null,""]
[null,""]
[null,""]
[null,""]
[null,""]
[null,""]
[null,""]
[null,""]
[null,""]
[null,{"$f":"IF(C522=\"\",\"\",ROW()-16)","v":""}]
[null,""]
[null,""]
[null,""]
[null,""]
[null,""]
[null,""]
[null,""]
[null,""]
[null,""]
[null,""]
[null,""]
[null,""]
[null,""]
[null,""]
[null,""]
[null,""]
[null,""]
[null,""]
[null,""]
[null,""]
[null,""]
[null,""]
[null,""]
[null,""]
[null,""]
[null,""]
[null,""]
[null,""]
[null,""]
[null,""]
[null,""]
[null,""]
[null,""]
[null,""]
[null,""]
[null,""]
[null,""]
[null,""]
[null,""]
[null,""]
[null,""]
[null,""]
[null,""]
[null,""]
[null,""]
[null,""]
[null,""]
[null,""]
[null,""]
[null,""]
[null,""]
[null,""]
[null,""]
[null,""]
[null,""]
[null,""]
[null,""]
[null,""]
[null,""]
[null,""]
[null,""]
[null,""]
[null,""]
[null,{"$f":"IF(C586=\"\",\"\",ROW()-16)","v":""}]
[null,""]
[null,""]
[null,""]
[null,""]
[null,""]
[null,""]
[null,""]
[null,""]
[null,""]
[null,""]
[null,""]
[null,""]
[null,""]
[null,""]
[null,""]
[null,""]
[null,""]
[null,""]
[null,""]
[null,""]
[null,""]
[null,""]
[null,""]
[null,""]
[null,""]
[null,""]
[null,""]
[null,""]
[null,""]
[null,""]
[null,""]
[null,""]
[null,""]
[null,""]
[null,""]
[null,""]
[null,""]
[null,""]
[null,""]
[null,""]
[null,""]
[null,""]
[null,""]
[null,""]
[null,""]
[null,""]
[null,""]
[null,{"$f":"IF(C634=\"\",\"\",ROW()-16)","v":""}]
[null,{"$f":"IF(C635=\"\",\"\",ROW()-16)","v":""}]

{"sheet":"بيانات الفصول","index":2,"n_rows":24,"n_cols":10,"rows_kept":24,"cut":false,"hidden":false,"merged":[[9,9,9,11],[7,9,7,11],[2,5,4,9],[21,9,21,11],[19,9,19,11],[17,9,17,11],[7,3,7,5],[9,3,9,5],[17,3,17,5],[19,3,19,5],[23,6,23,8],[21,3,21,5],[11,3,11,5],[11,9,11,11],[13,3,13,5],[13,9,13,11],[15,3,15,5],[15,9,15,11]]}
[]
[]
[null,null,null,null,null,"اختر الفصل المراد الذهاب إليه"]
[]
[]
[]
[]
[null,null,null,"فصل ( 1 / 1 )",null,null,null,null,null,"فصل ( 1 / 9 )"]
[]
[null,null,null,"فصل ( 1 / 2 )",null,null,null,null,null,"فصل ( 1 / 10 )"]
[]
[null,null,null,"فصل ( 1 / 3 )",null,null,null,null,null,"فصل ( 1 / 11 )"]
[]
[null,null,null,"فصل ( 1 / 4 )",null,null,null,null,null,"فصل ( 1 / 12 )"]
[]
[null,null,null,"فصل ( 1 / 5 )",null,null,null,null,null,"فصل ( 1 / 13 )"]
[]
[null,null,null,"فصل ( 1 /6 )",null,null,null,null,null,"فصل ( 1 / 14 )"]
[]
[null,null,null,"فصل ( 1 / 7 )",null,null,null,null,null,"فصل ( 1 / 15 )"]
[]
[null,null,null,"فصل ( 1 / 8 )",null,null,null,null,null,"فصل ( 1 / 16 )"]
[]
[null,null,null,null,null,null,"فصل ( 1 / 17 )"]

{"sheet":"1","index":3,"n_rows":58,"n_cols":12,"rows_kept":58,"cut":false,"hidden":false,"merged":[[4,4,4,8],[6,4,6,8]]}
[]
[]
[]
[null,null,null,{"$f":"Roma1","v":0},null,null,null,null,null,"بنون","بنات","الجملة"]
[null,null,null,{"$f":"Roma2","v":0},"قائمة بأسماء طلاب فصل",null,null,null,null,{"$f":"COUNTIF(E12:E47,\"ذكر*\")+COUNTIF(J12:J47,\"ذكر*\")","v":0},{"$f":"COUNTIF(E12:E47,\"أنثى*\")+COUNTIF(J12:J47,\"أنثى*\")","v":0},{"$f":"J5+K5","v":0}]
[null,null,null,{"$f":"Roma3","v":0},null,null,null,null,null,"مستجد","باق","الجملة"]
[null,null,null,{"$f":"Roma4","v":0},"((  1  /  1  ))",null,null,null,null,{"$f":"COUNTIF(G12:G47,\"مستجد*\")+COUNTIF(L12:L47,\"مستجد*\")","v":0},{"$f":"COUNTIF(G12:G47,\"باق*\")+COUNTIF(L12:L47,\"باق*\")","v":0},{"$f":"J7+K7","v":0}]
[null,null,null,{"$f":"Roma5","v":0},null,null,null,null,null,"مسلم","مسيحي","الجملة"]
[null,null,null,{"$f":"Roma6","v":0},null,null,null,null,null,{"$f":"COUNTIF(F12:F47,\"مسلم*\")+COUNTIF(K12:K47,\"مسلم*\")","v":0},{"$f":"COUNTIF(F12:F47,\"مسيحي*\")+COUNTIF(K12:K47,\"مسيحي*\")","v":0},{"$f":"J9+K9","v":0}]
[]
[null,null,"م","الاســـــــــــــــم","النوع","الديانة","الحالة","م","الاســـــــــــــــم","النوع","الديانة","الحالة"]
[null,null,{"$f":"IF(D12=\"\",\"\",ROW()-11)","v":""},null,null,null,null,{"$f":"IF(I12=\"\",\"\",ROW()+25)","v":""}]
[null,null,{"$f":"IF(D13=\"\",\"\",ROW()-11)","v":""},null,null,null,null,{"$f":"IF(I13=\"\",\"\",ROW()+25)","v":""}]
[null,null,"",null,null,null,null,""]
[null,null,"",null,null,null,null,""]
[null,null,"",null,null,null,null,""]
[null,null,"",null,null,null,null,""]
[null,null,"",null,null,null,null,""]
[null,null,"",null,null,null,null,""]
[null,null,"",null,null,null,null,""]
[null,null,"",null,null,null,null,""]
[null,null,"",null,null,null,null,""]
[null,null,"",null,null,null,null,""]
[null,null,"",null,null,null,null,""]
[null,null,"",null,null,null,null,""]
[null,null,"",null,null,null,null,""]
[null,null,"",null,null,null,null,""]
[null,null,"",null,null,null,null,""]
[null,null,"",null,null,null,null,""]
[null,null,"",null,null,null,null,""]
[null,null,"",null,null,null,null,""]
[null,null,"",null,null,null,null,""]
[null,null,"",null,null,null,null,""]
[null,null,"",null,null,null,null,""]
[null,null,"",null,null,null,null,""]
[null,null,"",null,null,null,null,""]
[null,null,"",null,null,null,null,""]
[null,null,"",null,null,null,null,""]
[null,null,"",null,null,null,null,""]
[null,null,"",null,null,null,null,""]
[null,null,"",null,null,null,null,""]
[null,null,"",null,null,null,null,""]
[null,null,"",null,null,null,null,""]
[null,null,"",null,null,null,null,""]
[null,null,"",null,null,null,null,""]
[null,null,"",null,null,null,null,""]
[null,null,"",null,null,null,null,""]
[null,null,null,null,null,null,null,null,null,"ذكر","مسلم","مستجد"]
[null,null,null,"مسئول شئون الطلاب",null,null,null,null,"مدير المدرسة","ذكر","مسلم","مستجد"]
[null,null,null,{"$f":"Roma7","v":0},null,null,null,null,{"$f":"Roma8","v":0},"ذكر","مسلم","مستجد"]
[null,null,null,null,null,null,null,null,null,"ذكر","مسلم","مستجد"]
[null,null,null,null,null,null,null,null,null,"ذكر","مسلم","مستجد"]
[null,null,null,null,null,null,null,null,null,"ذكر","مسلم","مستجد"]
[null,null,null,null,null,null,null,null,null,"ذكر","مسلم","مستجد"]
[null,null,null,null,null,null,null,null,null,"ذكر","مسلم","مستجد"]
[null,null,null,null,null,null,null,null,null,"ذكر","مسلم","مستجد"]
[null,null,null,null,null,null,null,null,null,"ذكر","مسلم","مستجد"]
[null,null,null,null,null,null,null,null,null,"ذكر","مسلم","مستجد"]

{"sheet":"2","index":4,"n_rows":50,"n_cols":12,"rows_kept":50,"cut":false,"hidden":false,"merged":[[4,4,4,8],[6,4,6,8]]}
[]
[]
[]
[null,null,null,{"$f":"Roma1","v":0},null,null,null,null,null,"بنون","بنات","الجملة"]
[null,null,null,{"$f":"Roma2","v":0},"قائمة بأسماء طلاب فصل",null,null,null,null,{"$f":"COUNTIF(E12:E47,\"ذكر*\")+COUNTIF(J12:J47,\"ذكر*\")","v":0},{"$f":"COUNTIF(E12:E47,\"أنثى*\")+COUNTIF(J12:J47,\"أنثى*\")","v":0},{"$f":"J5+K5","v":0}]
[null,null,null,{"$f":"Roma3","v":0},null,null,null,null,null,"مستجد","باق","الجملة"]
[null,null,null,{"$f":"Roma4","v":0},"((  1  /  2  ))",null,null,null,null,{"$f":"COUNTIF(G12:G47,\"مستجد*\")+COUNTIF(L12:L47,\"مستجد*\")","v":0},{"$f":"COUNTIF(G12:G47,\"باق*\")+COUNTIF(L12:L47,\"باق*\")","v":0},{"$f":"J7+K7","v":0}]
[null,null,null,{"$f":"Roma5","v":0},null,null,null,null,null,"مسلم","مسيحي","الجملة"]
[null,null,null,{"$f":"Roma6","v":0},null,null,null,null,null,{"$f":"COUNTIF(F12:F47,\"مسلم*\")+COUNTIF(K12:K47,\"مسلم*\")","v":0},{"$f":"COUNTIF(F12:F47,\"مسيحي*\")+COUNTIF(K12:K47,\"مسيحي*\")","v":0},{"$f":"J9+K9","v":0}]
[]
[null,null,"م","الاســـــــــــــــم","النوع","الديانة","الحالة","م","الاســـــــــــــــم","النوع","الديانة","الحالة"]
[null,null,{"$f":"IF(D12=\"\",\"\",ROW()-11)","v":""},null,null,null,null,{"$f":"IF(I12=\"\",\"\",ROW()+25)","v":""}]
[null,null,{"$f":"IF(D13=\"\",\"\",ROW()-11)","v":""},null,null,null,null,{"$f":"IF(I13=\"\",\"\",ROW()+25)","v":""}]
[null,null,"",null,null,null,null,""]
[null,null,"",null,null,null,null,""]
[null,null,"",null,null,null,null,""]
[null,null,"",null,null,null,null,""]
[null,null,"",null,null,null,null,""]
[null,null,"",null,null,null,null,""]
[null,null,"",null,null,null,null,""]
[null,null,"",null,null,null,null,""]
[null,null,"",null,null,null,null,""]
[null,null,"",null,null,null,null,""]
[null,null,"",null,null,null,null,""]
[null,null,"",null,null,null,null,""]
[null,null,"",null,null,null,null,""]
[null,null,"",null,null,null,null,""]
[null,null,"",null,null,null,null,""]
[null,null,"",null,null,null,null,""]
[null,null,"",null,null,null,null,""]
[null,null,"",null,null,null,null,""]
[null,null,"",null,null,null,null,""]
[null,null,"",null,null,null,null,""]
[null,null,"",null,null,null,null,""]
[null,null,"",null,null,null,null,""]
[null,null,"",null,null,null,null,""]
[null,null,"",null,null,null,null,""]
[null,null,"",null,null,null,null,""]
[null,null,"",null,null,null,null,""]
[null,null,"",null,null,null,null,""]
[null,null,"",null,null,null,null,""]
[null,null,"",null,null,null,null,""]
[null,null,"",null,null,null,null,""]
[null,null,"",null,null,null,null,""]
[null,null,"",null,null,null,null,""]
[null,null,"",null,null,null,null,""]
[null,null,"",null,null,null,null,""]
[]
[null,null,null,"مسئول شئون الطلاب",null,null,null,null,"مدير المدرسة"]
[null,null,null,{"$f":"Roma7","v":0},null,null,null,null,{"$f":"Roma8","v":0}]

{"sheet":"3","index":5,"n_rows":58,"n_cols":12,"rows_kept":58,"cut":false,"hidden":false,"merged":[[4,4,4,8],[6,4,6,8]]}
[]
[]
[]
[null,null,null,{"$f":"Roma1","v":0},null,null,null,null,null,"بنون","بنات","الجملة"]
[null,null,null,{"$f":"Roma2","v":0},"قائمة بأسماء طلاب فصل",null,null,null,null,{"$f":"COUNTIF(E12:E47,\"ذكر*\")+COUNTIF(J12:J47,\"ذكر*\")","v":0},{"$f":"COUNTIF(E12:E47,\"أنثى*\")+COUNTIF(J12:J47,\"أنثى*\")","v":0},{"$f":"J5+K5","v":0}]
[null,null,null,{"$f":"Roma3","v":0},null,null,null,null,null,"مستجد","باق","الجملة"]
[null,null,null,{"$f":"Roma4","v":0},"((  1  /  3  ))",null,null,null,null,{"$f":"COUNTIF(G12:G47,\"مستجد*\")+COUNTIF(L12:L47,\"مستجد*\")","v":0},{"$f":"COUNTIF(G12:G47,\"باق*\")+COUNTIF(L12:L47,\"باق*\")","v":0},{"$f":"J7+K7","v":0}]
[null,null,null,{"$f":"Roma5","v":0},null,null,null,null,null,"مسلم","مسيحي","الجملة"]
[null,null,null,{"$f":"Roma6","v":0},null,null,null,null,null,{"$f":"COUNTIF(F12:F47,\"مسلم*\")+COUNTIF(K12:K47,\"مسلم*\")","v":0},{"$f":"COUNTIF(F12:F47,\"مسيحي*\")+COUNTIF(K12:K47,\"مسيحي*\")","v":0},{"$f":"J9+K9","v":0}]
[]
[null,null,"م","الاســـــــــــــــم","النوع","الديانة","الحالة","م","الاســـــــــــــــم","النوع","الديانة","الحالة"]
[null,null,{"$f":"IF(D12=\"\",\"\",ROW()-11)","v":""},null,null,null,null,{"$f":"IF(I12=\"\",\"\",ROW()+25)","v":""}]
[null,null,{"$f":"IF(D13=\"\",\"\",ROW()-11)","v":""},null,null,null,null,{"$f":"IF(I13=\"\",\"\",ROW()+25)","v":""}]
[null,null,"",null,null,null,null,""]
[null,null,"",null,null,null,null,""]
[null,null,"",null,null,null,null,""]
[null,null,"",null,null,null,null,""]
[null,null,"",null,null,null,null,""]
[null,null,"",null,null,null,null,""]
[null,null,"",null,null,null,null,""]
[null,null,"",null,null,null,null,""]
[null,null,"",null,null,null,null,""]
[null,null,"",null,null,null,null,""]
[null,null,"",null,null,null,null,""]
[null,null,"",null,null,null,null,""]
[null,null,"",null,null,null,null,""]
[null,null,"",null,null,null,null,""]
[null,null,"",null,null,null,null,""]
[null,null,"",null,null,null,null,""]
[null,null,"",null,null,null,null,""]
[null,null,"",null,null,null,null,""]
[null,null,"",null,null,null,null,""]
[null,null,"",null,null,null,null,""]
[null,null,"",null,null,null,null,""]
[null,null,"",null,null,null,null,""]
[null,null,"",null,null,null,null,""]
[null,null,"",null,null,null,null,""]
[null,null,"",null,null,null,null,""]
[null,null,"",null,null,null,null,""]
[null,null,"",null,null,null,null,""]
[null,null,"",null,null,null,null,""]
[null,null,"",null,null,null,null,""]
[null,null,"",null,null,null,null,""]
[null,null,"",null,null,null,null,""]
[null,null,"",null,null,null,null,""]
[null,null,"",null,null,null,null,""]
[null,null,"",null,null,null,null,""]
[null,null,null,null,null,null,null,null,null,"ذكر","مسلم","مستجد"]
[null,null,null,"مسئول شئون الطلاب",null,null,null,null,"مدير المدرسة","ذكر","مسلم","مستجد"]
[null,null,null,{"$f":"Roma7","v":0},null,null,null,null,{"$f":"Roma8","v":0},"ذكر","مسلم","مستجد"]
[null,null,null,null,null,null,null,null,null,"ذكر","مسلم","مستجد"]
[null,null,null,null,null,null,null,null,null,"ذكر","مسلم","مستجد"]
[null,null,null,null,null,null,null,null,null,"ذكر","مسلم","مستجد"]
[null,null,null,null,null,null,null,null,null,"ذكر","مسلم","مستجد"]
[null,null,null,null,null,null,null,null,null,"ذكر","مسلم","مستجد"]
[null,null,null,null,null,null,null,null,null,"ذكر","مسلم","مستجد"]
[null,null,null,null,null,null,null,null,null,"ذكر","مسلم","مستجد"]
[null,null,null,null,null,null,null,null,null,"ذكر","مسلم","مستجد"]

{"sheet":"4","index":6,"n_rows":50,"n_cols":12,"rows_kept":50,"cut":false,"hidden":false,"merged":[[4,4,4,8],[6,4,6,8]]}
[]
[]
[]
[null,null,null,{"$f":"Roma1","v":0},null,null,null,null,null,"بنون","بنات","الجملة"]
[null,null,null,{"$f":"Roma2","v":0},"قائمة بأسماء طلاب فصل",null,null,null,null,{"$f":"COUNTIF(E12:E47,\"ذكر*\")+COUNTIF(J12:J47,\"ذكر*\")","v":0},{"$f":"COUNTIF(E12:E47,\"أنثى*\")+COUNTIF(J12:J47,\"أنثى*\")","v":0},{"$f":"J5+K5","v":0}]
[null,null,null,{"$f":"Roma3","v":0},null,null,null,null,null,"مستجد","باق","الجملة"]
[null,null,null,{"$f":"Roma4","v":0},"((  1  /  4  ))",null,null,null,null,{"$f":"COUNTIF(G12:G47,\"مستجد*\")+COUNTIF(L12:L47,\"مستجد*\")","v":0},{"$f":"COUNTIF(G12:G47,\"باق*\")+COUNTIF(L12:L47,\"باق*\")","v":0},{"$f":"J7+K7","v":0}]
[null,null,null,{"$f":"Roma5","v":0},null,null,null,null,null,"مسلم","مسيحي","الجملة"]
[null,null,null,{"$f":"Roma6","v":0},null,null,null,null,null,{"$f":"COUNTIF(F12:F47,\"مسلم*\")+COUNTIF(K12:K47,\"مسلم*\")","v":0},{"$f":"COUNTIF(F12:F47,\"مسيحي*\")+COUNTIF(K12:K47,\"مسيحي*\")","v":0},{"$f":"J9+K9","v":0}]
[]
[null,null,"م","الاســـــــــــــــم","النوع","الديانة","الحالة","م","الاســـــــــــــــم","النوع","الديانة","الحالة"]
[null,null,{"$f":"IF(D12=\"\",\"\",ROW()-11)","v":""},null,null,null,null,{"$f":"IF(I12=\"\",\"\",ROW()+25)","v":""}]
[null,null,{"$f":"IF(D13=\"\",\"\",ROW()-11)","v":""},null,null,null,null,{"$f":"IF(I13=\"\",\"\",ROW()+25)","v":""}]
[null,null,"",null,null,null,null,""]
[null,null,"",null,null,null,null,""]
[null,null,"",null,null,null,null,""]
[null,null,"",null,null,null,null,""]
[null,null,"",null,null,null,null,""]
[null,null,"",null,null,null,null,""]
[null,null,"",null,null,null,null,""]
[null,null,"",null,null,null,null,""]
[null,null,"",null,null,null,null,""]
[null,null,"",null,null,null,null,""]
[null,null,"",null,null,null,null,""]
[null,null,"",null,null,null,null,""]
[null,null,"",null,null,null,null,""]
[null,null,"",null,null,null,null,""]
[null,null,"",null,null,null,null,""]
[null,null,"",null,null,null,null,""]
[null,null,"",null,null,null,null,""]
[null,null,"",null,null,null,null,""]
[null,null,"",null,null,null,null,""]
[null,null,"",null,null,null,null,""]
[null,null,"",null,null,null,null,""]
[null,null,"",null,null,null,null,""]
[null,null,"",null,null,null,null,""]
[null,null,"",null,null,null,null,""]
[null,null,"",null,null,null,null,""]
[null,null,"",null,null,null,null,""]
[null,null,"",null,null,null,null,""]
[null,null,"",null,null,null,null,""]
[null,null,"",null,null,null,null,""]
[null,null,"",null,null,null,null,""]
[null,null,"",null,null,null,null,""]
[null,null,"",null,null,null,null,""]
[null,null,"",null,null,null,null,""]
[null,null,"",null,null,null,null,""]
[]
[null,null,null,"مسئول شئون الطلاب",null,null,null,null,"مدير المدرسة"]
[null,null,null,{"$f":"Roma7","v":0},null,null,null,null,{"$f":"Roma8","v":0}]

{"sheet":"5","index":7,"n_rows":50,"n_cols":12,"rows_kept":50,"cut":false,"hidden":false,"merged":[[4,4,4,8],[6,4,6,8]]}
[]
[]
[]
[null,null,null,{"$f":"Roma1","v":0},null,null,null,null,null,"بنون","بنات","الجملة"]
[null,null,null,{"$f":"Roma2","v":0},"قائمة بأسماء طلاب فصل",null,null,null,null,{"$f":"COUNTIF(E12:E47,\"ذكر*\")+COUNTIF(J12:J47,\"ذكر*\")","v":0},{"$f":"COUNTIF(E12:E47,\"أنثى*\")+COUNTIF(J12:J47,\"أنثى*\")","v":0},{"$f":"J5+K5","v":0}]
[null,null,null,{"$f":"Roma3","v":0},null,null,null,null,null,"مستجد","باق","الجملة"]
[null,null,null,{"$f":"Roma4","v":0},"((  1  /  5  ))",null,null,null,null,{"$f":"COUNTIF(G12:G47,\"مستجد*\")+COUNTIF(L12:L47,\"مستجد*\")","v":0},{"$f":"COUNTIF(G12:G47,\"باق*\")+COUNTIF(L12:L47,\"باق*\")","v":0},{"$f":"J7+K7","v":0}]
[null,null,null,{"$f":"Roma5","v":0},null,null,null,null,null,"مسلم","مسيحي","الجملة"]
[null,null,null,{"$f":"Roma6","v":0},null,null,null,null,null,{"$f":"COUNTIF(F12:F47,\"مسلم*\")+COUNTIF(K12:K47,\"مسلم*\")","v":0},{"$f":"COUNTIF(F12:F47,\"مسيحي*\")+COUNTIF(K12:K47,\"مسيحي*\")","v":0},{"$f":"J9+K9","v":0}]
[]
[null,null,"م","الاســـــــــــــــم","النوع","الديانة","الحالة","م","الاســـــــــــــــم","النوع","الديانة","الحالة"]
[null,null,{"$f":"IF(D12=\"\",\"\",ROW()-11)","v":""},null,null,null,null,{"$f":"IF(I12=\"\",\"\",ROW()+25)","v":""}]
[null,null,{"$f":"IF(D13=\"\",\"\",ROW()-11)","v":""},null,null,null,null,{"$f":"IF(I13=\"\",\"\",ROW()+25)","v":""}]
[null,null,"",null,null,null,null,""]
[null,null,"",null,null,null,null,""]
[null,null,"",null,null,null,null,""]
[null,null,"",null,null,null,null,""]
[null,null,"",null,null,null,null,""]
[null,null,"",null,null,null,null,""]
[null,null,"",null,null,null,null,""]
[null,null,"",null,null,null,null,""]
[null,null,"",null,null,null,null,""]
[null,null,"",null,null,null,null,""]
[null,null,"",null,null,null,null,""]
[null,null,"",null,null,null,null,""]
[null,null,"",null,null,null,null,""]
[null,null,"",null,null,null,null,""]
[null,null,"",null,null,null,null,""]
[null,null,"",null,null,null,null,""]
[null,null,"",null,null,null,null,""]
[null,null,"",null,null,null,null,""]
[null,null,"",null,null,null,null,""]
[null,null,"",null,null,null,null,""]
[null,null,"",null,null,null,null,""]
[null,null,"",null,null,null,null,""]
[null,null,"",null,null,null,null,""]
[null,null,"",null,null,null,null,""]
[null,null,"",null,null,null,null,""]
[null,null,"",null,null,null,null,""]
[null,null,"",null,null,null,null,""]
[null,null,"",null,null,null,null,""]
[null,null,"",null,null,null,null,""]
[null,null,"",null,null,null,null,""]
[null,null,"",null,null,null,null,""]
[null,null,"",null,null,null,null,""]
[null,null,"",null,null,null,null,""]
[null,null,"",null,null,null,null,""]
[]
[null,null,null,"مسئول شئون الطلاب",null,null,null,null,"مدير المدرسة"]
[null,null,null,{"$f":"Roma7","v":0},null,null,null,null,{"$f":"Roma8","v":0}]

{"sheet":"6","index":8,"n_rows":50,"n_cols":12,"rows_kept":50,"cut":false,"hidden":false,"merged":[[4,4,4,8],[6,4,6,8]]}
[]
[]
[]
[null,null,null,{"$f":"Roma1","v":0},null,null,null,null,null,"بنون","بنات","الجملة"]
[null,null,null,{"$f":"Roma2","v":0},"قائمة بأسماء طلاب فصل",null,null,null,null,{"$f":"COUNTIF(E12:E47,\"ذكر*\")+COUNTIF(J12:J47,\"ذكر*\")","v":0},{"$f":"COUNTIF(E12:E47,\"أنثى*\")+COUNTIF(J12:J47,\"أنثى*\")","v":0},{"$f":"J5+K5","v":0}]
[null,null,null,{"$f":"Roma3","v":0},null,null,null,null,null,"مستجد","باق","الجملة"]
[null,null,null,{"$f":"Roma4","v":0},"((  1  /  6  ))",null,null,null,null,{"$f":"COUNTIF(G12:G47,\"مستجد*\")+COUNTIF(L12:L47,\"مستجد*\")","v":0},{"$f":"COUNTIF(G12:G47,\"باق*\")+COUNTIF(L12:L47,\"باق*\")","v":0},{"$f":"J7+K7","v":0}]
[null,null,null,{"$f":"Roma5","v":0},null,null,null,null,null,"مسلم","مسيحي","الجملة"]
[null,null,null,{"$f":"Roma6","v":0},null,null,null,null,null,{"$f":"COUNTIF(F12:F47,\"مسلم*\")+COUNTIF(K12:K47,\"مسلم*\")","v":0},{"$f":"COUNTIF(F12:F47,\"مسيحي*\")+COUNTIF(K12:K47,\"مسيحي*\")","v":0},{"$f":"J9+K9","v":0}]
[]
[null,null,"م","الاســـــــــــــــم","النوع","الديانة","الحالة","م","الاســـــــــــــــم","النوع","الديانة","الحالة"]
[null,null,{"$f":"IF(D12=\"\",\"\",ROW()-11)","v":""},null,null,null,null,{"$f":"IF(I12=\"\",\"\",ROW()+25)","v":""}]
[null,null,{"$f":"IF(D13=\"\",\"\",ROW()-11)","v":""},null,null,null,null,{"$f":"IF(I13=\"\",\"\",ROW()+25)","v":""}]
[null,null,"",null,null,null,null,""]
[null,null,"",null,null,null,null,""]
[null,null,"",null,null,null,null,""]
[null,null,"",null,null,null,null,""]
[null,null,"",null,null,null,null,""]
[null,null,"",null,null,null,null,""]
[null,null,"",null,null,null,null,""]
[null,null,"",null,null,null,null,""]
[null,null,"",null,null,null,null,""]
[null,null,"",null,null,null,null,""]
[null,null,"",null,null,null,null,""]
[null,null,"",null,null,null,null,""]
[null,null,"",null,null,null,null,""]
[null,null,"",null,null,null,null,""]
[null,null,"",null,null,null,null,""]
[null,null,"",null,null,null,null,""]
[null,null,"",null,null,null,null,""]
[null,null,"",null,null,null,null,""]
[null,null,"",null,null,null,null,""]
[null,null,"",null,null,null,null,""]
[null,null,"",null,null,null,null,""]
[null,null,"",null,null,null,null,""]
[null,null,"",null,null,null,null,""]
[null,null,"",null,null,null,null,""]
[null,null,"",null,null,null,null,""]
[null,null,"",null,null,null,null,""]
[null,null,"",null,null,null,null,""]
[null,null,"",null,null,null,null,""]
[null,null,"",null,null,null,null,""]
[null,null,"",null,null,null,null,""]
[null,null,"",null,null,null,null,""]
[null,null,"",null,null,null,null,""]
[null,null,"",null,null,null,null,""]
[null,null,"",null,null,null,null,""]
[]
[null,null,null,"مسئول شئون الطلاب",null,null,null,null,"مدير المدرسة"]
[null,null,null,{"$f":"Roma7","v":0},null,null,null,null,{"$f":"Roma8","v":0}]

{"sheet":"7","index":9,"n_rows":50,"n_cols":12,"rows_kept":50,"cut":false,"hidden":false,"merged":[[4,4,4,8],[6,4,6,8]]}
[]
[]
[]
[null,null,null,{"$f":"Roma1","v":0},null,null,null,null,null,"بنون","بنات","الجملة"]
[null,null,null,{"$f":"Roma2","v":0},"قائمة بأسماء طلاب فصل",null,null,null,null,{"$f":"COUNTIF(E12:E47,\"ذكر*\")+COUNTIF(J12:J47,\"ذكر*\")","v":0},{"$f":"COUNTIF(E12:E47,\"أنثى*\")+COUNTIF(J12:J47,\"أنثى*\")","v":0},{"$f":"J5+K5","v":0}]
[null,null,null,{"$f":"Roma3","v":0},null,null,null,null,null,"مستجد","باق","الجملة"]
[null,null,null,{"$f":"Roma4","v":0},"((  1  /  7  ))",null,null,null,null,{"$f":"COUNTIF(G12:G47,\"مستجد*\")+COUNTIF(L12:L47,\"مستجد*\")","v":0},{"$f":"COUNTIF(G12:G47,\"باق*\")+COUNTIF(L12:L47,\"باق*\")","v":0},{"$f":"J7+K7","v":0}]
[null,null,null,{"$f":"Roma5","v":0},null,null,null,null,null,"مسلم","مسيحي","الجملة"]
[null,null,null,{"$f":"Roma6","v":0},null,null,null,null,null,{"$f":"COUNTIF(F12:F47,\"مسلم*\")+COUNTIF(K12:K47,\"مسلم*\")","v":0},{"$f":"COUNTIF(F12:F47,\"مسيحي*\")+COUNTIF(K12:K47,\"مسيحي*\")","v":0},{"$f":"J9+K9","v":0}]
[]
[null,null,"م","الاســـــــــــــــم","النوع","الديانة","الحالة","م","الاســـــــــــــــم","النوع","الديانة","الحالة"]
[null,null,{"$f":"IF(D12=\"\",\"\",ROW()-11)","v":""},null,null,null,null,{"$f":"IF(I12=\"\",\"\",ROW()+25)","v":""}]
[null,null,{"$f":"IF(D13=\"\",\"\",ROW()-11)","v":""},null,null,null,null,{"$f":"IF(I13=\"\",\"\",ROW()+25)","v":""}]
[null,null,"",null,null,null,null,""]
[null,null,"",null,null,null,null,""]
[null,null,"",null,null,null,null,""]
[null,null,"",null,null,null,null,""]
[null,null,"",null,null,null,null,""]
[null,null,"",null,null,null,null,""]
[null,null,"",null,null,null,null,""]
[null,null,"",null,null,null,null,""]
[null,null,"",null,null,null,null,""]
[null,null,"",null,null,null,null,""]
[null,null,"",null,null,null,null,""]
[null,null,"",null,null,null,null,""]
[null,null,"",null,null,null,null,""]
[null,null,"",null,null,null,null,""]
[null,null,"",null,null,null,null,""]
[null,null,"",null,null,null,null,""]
[null,null,"",null,null,null,null,""]
[null,null,"",null,null,null,null,""]
[null,null,"",null,null,null,null,""]
[null,null,"",null,null,null,null,""]
[null,null,"",null,null,null,null,""]
[null,null,"",null,null,null,null,""]
[null,null,"",null,null,null,null,""]
[null,null,"",null,null,null,null,""]
[null,null,"",null,null,null,null,""]
[null,null,"",null,null,null,null,""]
[null,null,"",null,null,null,null,""]
[null,null,"",null,null,null,null,""]
[null,null,"",null,null,null,null,""]
[null,null,"",null,null,null,null,""]
[null,null,"",null,null,null,null,""]
[null,null,"",null,null,null,null,""]
[null,null,"",null,null,null,null,""]
[null,null,"",null,null,null,null,""]
[]
[null,null,null,"مسئول شئون الطلاب",null,null,null,null,"مدير المدرسة"]
[null,null,null,{"$f":"Roma7","v":0},null,null,null,null,{"$f":"Roma8","v":0}]

{"sheet":"8","index":10,"n_rows":50,"n_cols":12,"rows_kept":50,"cut":false,"hidden":false,"merged":[[4,4,4,8],[6,4,6,8]]}
[]
[]
[]
[null,null,null,{"$f":"Roma1","v":0},null,null,null,null,null,"بنون","بنات","الجملة"]
[null,null,null,{"$f":"Roma2","v":0},"قائمة بأسماء طلاب فصل",null,null,null,null,{"$f":"COUNTIF(E12:E47,\"ذكر*\")+COUNTIF(J12:J47,\"ذكر*\")","v":0},{"$f":"COUNTIF(E12:E47,\"أنثى*\")+COUNTIF(J12:J47,\"أنثى*\")","v":0},{"$f":"J5+K5","v":0}]
[null,null,null,{"$f":"Roma3","v":0},null,null,null,null,null,"مستجد","باق","الجملة"]
[null,null,null,{"$f":"Roma4","v":0},"((  1  /  8  ))",null,null,null,null,{"$f":"COUNTIF(G12:G47,\"مستجد*\")+COUNTIF(L12:L47,\"مستجد*\")","v":0},{"$f":"COUNTIF(G12:G47,\"باق*\")+COUNTIF(L12:L47,\"باق*\")","v":0},{"$f":"J7+K7","v":0}]
[null,null,null,{"$f":"Roma5","v":0},null,null,null,null,null,"مسلم","مسيحي","الجملة"]
[null,null,null,{"$f":"Roma6","v":0},null,null,null,null,null,{"$f":"COUNTIF(F12:F47,\"مسلم*\")+COUNTIF(K12:K47,\"مسلم*\")","v":0},{"$f":"COUNTIF(F12:F47,\"مسيحي*\")+COUNTIF(K12:K47,\"مسيحي*\")","v":0},{"$f":"J9+K9","v":0}]
[]
[null,null,"م","الاســـــــــــــــم","النوع","الديانة","الحالة","م","الاســـــــــــــــم","النوع","الديانة","الحالة"]
[null,null,{"$f":"IF(D12=\"\",\"\",ROW()-11)","v":""},null,null,null,null,{"$f":"IF(I12=\"\",\"\",ROW()+25)","v":""}]
[null,null,{"$f":"IF(D13=\"\",\"\",ROW()-11)","v":""},null,null,null,null,{"$f":"IF(I13=\"\",\"\",ROW()+25)","v":""}]
[null,null,"",null,null,null,null,""]
[null,null,"",null,null,null,null,""]
[null,null,"",null,null,null,null,""]
[null,null,"",null,null,null,null,""]
[null,null,"",null,null,null,null,""]
[null,null,"",null,null,null,null,""]
[null,null,"",null,null,null,null,""]
[null,null,"",null,null,null,null,""]
[null,null,"",null,null,null,null,""]
[null,null,"",null,null,null,null,""]
[null,null,"",null,null,null,null,""]
[null,null,"",null,null,null,null,""]
[null,null,"",null,null,null,null,""]
[null,null,"",null,null,null,null,""]
[null,null,"",null,null,null,null,""]
[null,null,"",null,null,null,null,""]
[null,null,"",null,null,null,null,""]
[null,null,"",null,null,null,null,""]
[null,null,"",null,null,null,null,""]
[null,null,"",null,null,null,null,""]
[null,null,"",null,null,null,null,""]
[null,null,"",null,null,null,null,""]
[null,null,"",null,null,null,null,""]
[null,null,"",null,null,null,null,""]
[null,null,"",null,null,null,null,""]
[null,null,"",null,null,null,null,""]
[null,null,"",null,null,null,null,""]
[null,null,"",null,null,null,null,""]
[null,null,"",null,null,null,null,""]
[null,null,"",null,null,null,null,""]
[null,null,"",null,null,null,null,""]
[null,null,"",null,null,null,null,""]
[null,null,"",null,null,null,null,""]
[null,null,"",null,null,null,null,""]
[]
[null,null,null,"مسئول شئون الطلاب",null,null,null,null,"مدير المدرسة"]
[null,null,null,{"$f":"Roma7","v":0},null,null,null,null,{"$f":"Roma8","v":0}]

{"sheet":"9","index":11,"n_rows":50,"n_cols":12,"rows_kept":50,"cut":false,"hidden":false,"merged":[[4,4,4,8],[6,4,6,8]]}
[]
[]
[]
[null,null,null,{"$f":"Roma1","v":0},null,null,null,null,null,"بنون","بنات","الجملة"]
[null,null,null,{"$f":"Roma2","v":0},"قائمة بأسماء طلاب فصل",null,null,null,null,{"$f":"COUNTIF(E12:E47,\"ذكر*\")+COUNTIF(J12:J47,\"ذكر*\")","v":0},{"$f":"COUNTIF(E12:E47,\"أنثى*\")+COUNTIF(J12:J47,\"أنثى*\")","v":0},{"$f":"J5+K5","v":0}]
[null,null,null,{"$f":"Roma3","v":0},null,null,null,null,null,"مستجد","باق","الجملة"]
[null,null,null,{"$f":"Roma4","v":0},"((  1  /  9  ))",null,null,null,null,{"$f":"COUNTIF(G12:G47,\"مستجد*\")+COUNTIF(L12:L47,\"مستجد*\")","v":0},{"$f":"COUNTIF(G12:G47,\"باق*\")+COUNTIF(L12:L47,\"باق*\")","v":0},{"$f":"J7+K7","v":0}]
[null,null,null,{"$f":"Roma5","v":0},null,null,null,null,null,"مسلم","مسيحي","الجملة"]
[null,null,null,{"$f":"Roma6","v":0},null,null,null,null,null,{"$f":"COUNTIF(F12:F47,\"مسلم*\")+COUNTIF(K12:K47,\"مسلم*\")","v":0},{"$f":"COUNTIF(F12:F47,\"مسيحي*\")+COUNTIF(K12:K47,\"مسيحي*\")","v":0},{"$f":"J9+K9","v":0}]
[]
[null,null,"م","الاســـــــــــــــم","النوع","الديانة","الحالة","م","الاســـــــــــــــم","النوع","الديانة","الحالة"]
[null,null,{"$f":"IF(D12=\"\",\"\",ROW()-11)","v":""},null,null,null,null,{"$f":"IF(I12=\"\",\"\",ROW()+25)","v":""}]
[null,null,{"$f":"IF(D13=\"\",\"\",ROW()-11)","v":""},null,null,null,null,{"$f":"IF(I13=\"\",\"\",ROW()+25)","v":""}]
[null,null,"",null,null,null,null,""]
[null,null,"",null,null,null,null,""]
[null,null,"",null,null,null,null,""]
[null,null,"",null,null,null,null,""]
[null,null,"",null,null,null,null,""]
[null,null,"",null,null,null,null,""]
[null,null,"",null,null,null,null,""]
[null,null,"",null,null,null,null,""]
[null,null,"",null,null,null,null,""]
[null,null,"",null,null,null,null,""]
[null,null,"",null,null,null,null,""]
[null,null,"",null,null,null,null,""]
[null,null,"",null,null,null,null,""]
[null,null,"",null,null,null,null,""]
[null,null,"",null,null,null,null,""]
[null,null,"",null,null,null,null,""]
[null,null,"",null,null,null,null,""]
[null,null,"",null,null,null,null,""]
[null,null,"",null,null,null,null,""]
[null,null,"",null,null,null,null,""]
[null,null,"",null,null,null,null,""]
[null,null,"",null,null,null,null,""]
[null,null,"",null,null,null,null,""]
[null,null,"",null,null,null,null,""]
[null,null,"",null,null,null,null,""]
[null,null,"",null,null,null,null,""]
[null,null,"",null,null,null,null,""]
[null,null,"",null,null,null,null,""]
[null,null,"",null,null,null,null,""]
[null,null,"",null,null,null,null,""]
[null,null,"",null,null,null,null,""]
[null,null,"",null,null,null,null,""]
[null,null,"",null,null,null,null,""]
[null,null,"",null,null,null,null,""]
[]
[null,null,null,"مسئول شئون الطلاب",null,null,null,null,"مدير المدرسة"]
[null,null,null,{"$f":"Roma7","v":0},null,null,null,null,{"$f":"Roma8","v":0}]

{"sheet":"10","index":12,"n_rows":50,"n_cols":12,"rows_kept":50,"cut":false,"hidden":false,"merged":[[4,4,4,8],[6,4,6,8]]}
[]
[]
[]
[null,null,null,{"$f":"Roma1","v":0},null,null,null,null,null,"بنون","بنات","الجملة"]
[null,null,null,{"$f":"Roma2","v":0},"قائمة بأسماء طلاب فصل",null,null,null,null,{"$f":"COUNTIF(E12:E47,\"ذكر*\")+COUNTIF(J12:J47,\"ذكر*\")","v":0},{"$f":"COUNTIF(E12:E47,\"أنثى*\")+COUNTIF(J12:J47,\"أنثى*\")","v":0},{"$f":"J5+K5","v":0}]
[null,null,null,{"$f":"Roma3","v":0},null,null,null,null,null,"مستجد","باق","الجملة"]
[null,null,null,{"$f":"Roma4","v":0},"((  1  /  10  ))",null,null,null,null,{"$f":"COUNTIF(G12:G47,\"مستجد*\")+COUNTIF(L12:L47,\"مستجد*\")","v":0},{"$f":"COUNTIF(G12:G47,\"باق*\")+COUNTIF(L12:L47,\"باق*\")","v":0},{"$f":"J7+K7","v":0}]
[null,null,null,{"$f":"Roma5","v":0},null,null,null,null,null,"مسلم","مسيحي","الجملة"]
[null,null,null,{"$f":"Roma6","v":0},null,null,null,null,null,{"$f":"COUNTIF(F12:F47,\"مسلم*\")+COUNTIF(K12:K47,\"مسلم*\")","v":0},{"$f":"COUNTIF(F12:F47,\"مسيحي*\")+COUNTIF(K12:K47,\"مسيحي*\")","v":0},{"$f":"J9+K9","v":0}]
[]
[null,null,"م","الاســـــــــــــــم","النوع","الديانة","الحالة","م","الاســـــــــــــــم","النوع","الديانة","الحالة"]
[null,null,{"$f":"IF(D12=\"\",\"\",ROW()-11)","v":""},null,null,null,null,{"$f":"IF(I12=\"\",\"\",ROW()+25)","v":""}]
[null,null,{"$f":"IF(D13=\"\",\"\",ROW()-11)","v":""},null,null,null,null,{"$f":"IF(I13=\"\",\"\",ROW()+25)","v":""}]
[null,null,"",null,null,null,null,""]
[null,null,"",null,null,null,null,""]
[null,null,"",null,null,null,null,""]
[null,null,"",null,null,null,null,""]
[null,null,"",null,null,null,null,""]
[null,null,"",null,null,null,null,""]
[null,null,"",null,null,null,null,""]
[null,null,"",null,null,null,null,""]
[null,null,"",null,null,null,null,""]
[null,null,"",null,null,null,null,""]
[null,null,"",null,null,null,null,""]
[null,null,"",null,null,null,null,""]
[null,null,"",null,null,null,null,""]
[null,null,"",null,null,null,null,""]
[null,null,"",null,null,null,null,""]
[null,null,"",null,null,null,null,""]
[null,null,"",null,null,null,null,""]
[null,null,"",null,null,null,null,""]
[null,null,"",null,null,null,null,""]
[null,null,"",null,null,null,null,""]
[null,null,"",null,null,null,null,""]
[null,null,"",null,null,null,null,""]
[null,null,"",null,null,null,null,""]
[null,null,"",null,null,null,null,""]
[null,null,"",null,null,null,null,""]
[null,null,"",null,null,null,null,""]
[null,null,"",null,null,null,null,""]
[null,null,"",null,null,null,null,""]
[null,null,"",null,null,null,null,""]
[null,null,"",null,null,null,null,""]
[null,null,"",null,null,null,null,""]
[null,null,"",null,null,null,null,""]
[null,null,"",null,null,null,null,""]
[null,null,"",null,null,null,null,""]
[]
[null,null,null,"مسئول شئون الطلاب",null,null,null,null,"مدير المدرسة"]
[null,null,null,{"$f":"Roma7","v":0},null,null,null,null,{"$f":"Roma8","v":0}]

{"sheet":"11","index":13,"n_rows":50,"n_cols":12,"rows_kept":50,"cut":false,"hidden":false,"merged":[[4,4,4,8],[6,4,6,8]]}
[]
[]
[]
[null,null,null,{"$f":"Roma1","v":0},null,null,null,null,null,"بنون","بنات","الجملة"]
[null,null,null,{"$f":"Roma2","v":0},"قائمة بأسماء طلاب فصل",null,null,null,null,{"$f":"COUNTIF(E12:E47,\"ذكر*\")+COUNTIF(J12:J47,\"ذكر*\")","v":0},{"$f":"COUNTIF(E12:E47,\"أنثى*\")+COUNTIF(J12:J47,\"أنثى*\")","v":0},{"$f":"J5+K5","v":0}]
[null,null,null,{"$f":"Roma3","v":0},null,null,null,null,null,"مستجد","باق","الجملة"]
[null,null,null,{"$f":"Roma4","v":0},"((  1  /  11  ))",null,null,null,null,{"$f":"COUNTIF(G12:G47,\"مستجد*\")+COUNTIF(L12:L47,\"مستجد*\")","v":0},{"$f":"COUNTIF(G12:G47,\"باق*\")+COUNTIF(L12:L47,\"باق*\")","v":0},{"$f":"J7+K7","v":0}]
[null,null,null,{"$f":"Roma5","v":0},null,null,null,null,null,"مسلم","مسيحي","الجملة"]
[null,null,null,{"$f":"Roma6","v":0},null,null,null,null,null,{"$f":"COUNTIF(F12:F47,\"مسلم*\")+COUNTIF(K12:K47,\"مسلم*\")","v":0},{"$f":"COUNTIF(F12:F47,\"مسيحي*\")+COUNTIF(K12:K47,\"مسيحي*\")","v":0},{"$f":"J9+K9","v":0}]
[]
[null,null,"م","الاســـــــــــــــم","النوع","الديانة","الحالة","م","الاســـــــــــــــم","النوع","الديانة","الحالة"]
[null,null,{"$f":"IF(D12=\"\",\"\",ROW()-11)","v":""},null,null,null,null,{"$f":"IF(I12=\"\",\"\",ROW()+25)","v":""}]
[null,null,{"$f":"IF(D13=\"\",\"\",ROW()-11)","v":""},null,null,null,null,{"$f":"IF(I13=\"\",\"\",ROW()+25)","v":""}]
[null,null,"",null,null,null,null,""]
[null,null,"",null,null,null,null,""]
[null,null,"",null,null,null,null,""]
[null,null,"",null,null,null,null,""]
[null,null,"",null,null,null,null,""]
[null,null,"",null,null,null,null,""]
[null,null,"",null,null,null,null,""]
[null,null,"",null,null,null,null,""]
[null,null,"",null,null,null,null,""]
[null,null,"",null,null,null,null,""]
[null,null,"",null,null,null,null,""]
[null,null,"",null,null,null,null,""]
[null,null,"",null,null,null,null,""]
[null,null,"",null,null,null,null,""]
[null,null,"",null,null,null,null,""]
[null,null,"",null,null,null,null,""]
[null,null,"",null,null,null,null,""]
[null,null,"",null,null,null,null,""]
[null,null,"",null,null,null,null,""]
[null,null,"",null,null,null,null,""]
[null,null,"",null,null,null,null,""]
[null,null,"",null,null,null,null,""]
[null,null,"",null,null,null,null,""]
[null,null,"",null,null,null,null,""]
[null,null,"",null,null,null,null,""]
[null,null,"",null,null,null,null,""]
[null,null,"",null,null,null,null,""]
[null,null,"",null,null,null,null,""]
[null,null,"",null,null,null,null,""]
[null,null,"",null,null,null,null,""]
[null,null,"",null,null,null,null,""]
[null,null,"",null,null,null,null,""]
[null,null,"",null,null,null,null,""]
[null,null,"",null,null,null,null,""]
[]
[null,null,null,"مسئول شئون الطلاب",null,null,null,null,"مدير المدرسة"]
[null,null,null,{"$f":"Roma7","v":0},null,null,null,null,{"$f":"Roma8","v":0}]

{"sheet":"12","index":14,"n_rows":50,"n_cols":12,"rows_kept":50,"cut":false,"hidden":false,"merged":[[4,4,4,8],[6,4,6,8]]}
[]
[]
[]
[null,null,null,{"$f":"Roma1","v":0},null,null,null,null,null,"بنون","بنات","الجملة"]
[null,null,null,{"$f":"Roma2","v":0},"قائمة بأسماء طلاب فصل",null,null,null,null,{"$f":"COUNTIF(E12:E47,\"ذكر*\")+COUNTIF(J12:J47,\"ذكر*\")","v":0},{"$f":"COUNTIF(E12:E47,\"أنثى*\")+COUNTIF(J12:J47,\"أنثى*\")","v":0},{"$f":"J5+K5","v":0}]
[null,null,null,{"$f":"Roma3","v":0},null,null,null,null,null,"مستجد","باق","الجملة"]
[null,null,null,{"$f":"Roma4","v":0},"((  1  /  12  ))",null,null,null,null,{"$f":"COUNTIF(G12:G47,\"مستجد*\")+COUNTIF(L12:L47,\"مستجد*\")","v":0},{"$f":"COUNTIF(G12:G47,\"باق*\")+COUNTIF(L12:L47,\"باق*\")","v":0},{"$f":"J7+K7","v":0}]
[null,null,null,{"$f":"Roma5","v":0},null,null,null,null,null,"مسلم","مسيحي","الجملة"]
[null,null,null,{"$f":"Roma6","v":0},null,null,null,null,null,{"$f":"COUNTIF(F12:F47,\"مسلم*\")+COUNTIF(K12:K47,\"مسلم*\")","v":0},{"$f":"COUNTIF(F12:F47,\"مسيحي*\")+COUNTIF(K12:K47,\"مسيحي*\")","v":0},{"$f":"J9+K9","v":0}]
[]
[null,null,"م","الاســـــــــــــــم","النوع","الديانة","الحالة","م","الاســـــــــــــــم","النوع","الديانة","الحالة"]
[null,null,{"$f":"IF(D12=\"\",\"\",ROW()-11)","v":""},null,null,null,null,{"$f":"IF(I12=\"\",\"\",ROW()+25)","v":""}]
[null,null,{"$f":"IF(D13=\"\",\"\",ROW()-11)","v":""},null,null,null,null,{"$f":"IF(I13=\"\",\"\",ROW()+25)","v":""}]
[null,null,"",null,null,null,null,""]
[null,null,"",null,null,null,null,""]
[null,null,"",null,null,null,null,""]
[null,null,"",null,null,null,null,""]
[null,null,"",null,null,null,null,""]
[null,null,"",null,null,null,null,""]
[null,null,"",null,null,null,null,""]
[null,null,"",null,null,null,null,""]
[null,null,"",null,null,null,null,""]
[null,null,"",null,null,null,null,""]
[null,null,"",null,null,null,null,""]
[null,null,"",null,null,null,null,""]
[null,null,"",null,null,null,null,""]
[null,null,"",null,null,null,null,""]
[null,null,"",null,null,null,null,""]
[null,null,"",null,null,null,null,""]
[null,null,"",null,null,null,null,""]
[null,null,"",null,null,null,null,""]
[null,null,"",null,null,null,null,""]
[null,null,"",null,null,null,null,""]
[null,null,"",null,null,null,null,""]
[null,null,"",null,null,null,null,""]
[null,null,"",null,null,null,null,""]
[null,null,"",null,null,null,null,""]
[null,null,"",null,null,null,null,""]
[null,null,"",null,null,null,null,""]
[null,null,"",null,null,null,null,""]
[null,null,"",null,null,null,null,""]
[null,null,"",null,null,null,null,""]
[null,null,"",null,null,null,null,""]
[null,null,"",null,null,null,null,""]
[null,null,"",null,null,null,null,""]
[null,null,"",null,null,null,null,""]
[null,null,"",null,null,null,null,""]
[]
[null,null,null,"مسئول شئون الطلاب",null,null,null,null,"مدير المدرسة"]
[null,null,null,{"$f":"Roma7","v":0},null,null,null,null,{"$f":"Roma8","v":0}]

{"sheet":"13","index":15,"n_rows":50,"n_cols":12,"rows_kept":50,"cut":false,"hidden":false,"merged":[[4,4,4,8],[6,4,6,8]]}
[]
[]
[]
[null,null,null,{"$f":"Roma1","v":0},null,null,null,null,null,"بنون","بنات","الجملة"]
[null,null,null,{"$f":"Roma2","v":0},"قائمة بأسماء طلاب فصل",null,null,null,null,{"$f":"COUNTIF(E12:E47,\"ذكر*\")+COUNTIF(J12:J47,\"ذكر*\")","v":0},{"$f":"COUNTIF(E12:E47,\"أنثى*\")+COUNTIF(J12:J47,\"أنثى*\")","v":0},{"$f":"J5+K5","v":0}]
[null,null,null,{"$f":"Roma3","v":0},null,null,null,null,null,"مستجد","باق","الجملة"]
[null,null,null,{"$f":"Roma4","v":0},"((  1  /  13  ))",null,null,null,null,{"$f":"COUNTIF(G12:G47,\"مستجد*\")+COUNTIF(L12:L47,\"مستجد*\")","v":0},{"$f":"COUNTIF(G12:G47,\"باق*\")+COUNTIF(L12:L47,\"باق*\")","v":0},{"$f":"J7+K7","v":0}]
[null,null,null,{"$f":"Roma5","v":0},null,null,null,null,null,"مسلم","مسيحي","الجملة"]
[null,null,null,{"$f":"Roma6","v":0},null,null,null,null,null,{"$f":"COUNTIF(F12:F47,\"مسلم*\")+COUNTIF(K12:K47,\"مسلم*\")","v":0},{"$f":"COUNTIF(F12:F47,\"مسيحي*\")+COUNTIF(K12:K47,\"مسيحي*\")","v":0},{"$f":"J9+K9","v":0}]
[]
[null,null,"م","الاســـــــــــــــم","النوع","الديانة","الحالة","م","الاســـــــــــــــم","النوع","الديانة","الحالة"]
[null,null,{"$f":"IF(D12=\"\",\"\",ROW()-11)","v":""},null,null,null,null,{"$f":"IF(I12=\"\",\"\",ROW()+25)","v":""}]
[null,null,{"$f":"IF(D13=\"\",\"\",ROW()-11)","v":""},null,null,null,null,{"$f":"IF(I13=\"\",\"\",ROW()+25)","v":""}]
[null,null,"",null,null,null,null,""]
[null,null,"",null,null,null,null,""]
[null,null,"",null,null,null,null,""]
[null,null,"",null,null,null,null,""]
[null,null,"",null,null,null,null,""]
[null,null,"",null,null,null,null,""]
[null,null,"",null,null,null,null,""]
[null,null,"",null,null,null,null,""]
[null,null,"",null,null,null,null,""]
[null,null,"",null,null,null,null,""]
[null,null,"",null,null,null,null,""]
[null,null,"",null,null,null,null,""]
[null,null,"",null,null,null,null,""]
[null,null,"",null,null,null,null,""]
[null,null,"",null,null,null,null,""]
[null,null,"",null,null,null,null,""]
[null,null,"",null,null,null,null,""]
[null,null,"",null,null,null,null,""]
[null,null,"",null,null,null,null,""]
[null,null,"",null,null,null,null,""]
[null,null,"",null,null,null,null,""]
[null,null,"",null,null,null,null,""]
[null,null,"",null,null,null,null,""]
[null,null,"",null,null,null,null,""]
[null,null,"",null,null,null,null,""]
[null,null,"",null,null,null,null,""]
[null,null,"",null,null,null,null,""]
[null,null,"",null,null,null,null,""]
[null,null,"",null,null,null,null,""]
[null,null,"",null,null,null,null,""]
[null,null,"",null,null,null,null,""]
[null,null,"",null,null,null,null,""]
[null,null,"",null,null,null,null,""]
[null,null,"",null,null,null,null,""]
[]
[null,null,null,"مسئول شئون الطلاب",null,null,null,null,"مدير المدرسة"]
[null,null,null,{"$f":"Roma7","v":0},null,null,null,null,{"$f":"Roma8","v":0}]

{"sheet":"14","index":16,"n_rows":50,"n_cols":12,"rows_kept":50,"cut":false,"hidden":false,"merged":[[4,4,4,8],[6,4,6,8]]}
[]
[]
[]
[null,null,null,{"$f":"Roma1","v":0},null,null,null,null,null,"بنون","بنات","الجملة"]
[null,null,null,{"$f":"Roma2","v":0},"قائمة بأسماء طلاب فصل",null,null,null,null,{"$f":"COUNTIF(E12:E47,\"ذكر*\")+COUNTIF(J12:J47,\"ذكر*\")","v":0},{"$f":"COUNTIF(E12:E47,\"أنثى*\")+COUNTIF(J12:J47,\"أنثى*\")","v":0},{"$f":"J5+K5","v":0}]
[null,null,null,{"$f":"Roma3","v":0},null,null,null,null,null,"مستجد","باق","الجملة"]
[null,null,null,{"$f":"Roma4","v":0},"((  1  /  14  ))",null,null,null,null,{"$f":"COUNTIF(G12:G47,\"مستجد*\")+COUNTIF(L12:L47,\"مستجد*\")","v":0},{"$f":"COUNTIF(G12:G47,\"باق*\")+COUNTIF(L12:L47,\"باق*\")","v":0},{"$f":"J7+K7","v":0}]
[null,null,null,{"$f":"Roma5","v":0},null,null,null,null,null,"مسلم","مسيحي","الجملة"]
[null,null,null,{"$f":"Roma6","v":0},null,null,null,null,null,{"$f":"COUNTIF(F12:F47,\"مسلم*\")+COUNTIF(K12:K47,\"مسلم*\")","v":0},{"$f":"COUNTIF(F12:F47,\"مسيحي*\")+COUNTIF(K12:K47,\"مسيحي*\")","v":0},{"$f":"J9+K9","v":0}]
[]
[null,null,"م","الاســـــــــــــــم","النوع","الديانة","الحالة","م","الاســـــــــــــــم","النوع","الديانة","الحالة"]
[null,null,{"$f":"IF(D12=\"\",\"\",ROW()-11)","v":""},null,null,null,null,{"$f":"IF(I12=\"\",\"\",ROW()+25)","v":""}]
[null,null,{"$f":"IF(D13=\"\",\"\",ROW()-11)","v":""},null,null,null,null,{"$f":"IF(I13=\"\",\"\",ROW()+25)","v":""}]
[null,null,"",null,null,null,null,""]
[null,null,"",null,null,null,null,""]
[null,null,"",null,null,null,null,""]
[null,null,"",null,null,null,null,""]
[null,null,"",null,null,null,null,""]
[null,null,"",null,null,null,null,""]
[null,null,"",null,null,null,null,""]
[null,null,"",null,null,null,null,""]
[null,null,"",null,null,null,null,""]
[null,null,"",null,null,null,null,""]
[null,null,"",null,null,null,null,""]
[null,null,"",null,null,null,null,""]
[null,null,"",null,null,null,null,""]
[null,null,"",null,null,null,null,""]
[null,null,"",null,null,null,null,""]
[null,null,"",null,null,null,null,""]
[null,null,"",null,null,null,null,""]
[null,null,"",null,null,null,null,""]
[null,null,"",null,null,null,null,""]
[null,null,"",null,null,null,null,""]
[null,null,"",null,null,null,null,""]
[null,null,"",null,null,null,null,""]
[null,null,"",null,null,null,null,""]
[null,null,"",null,null,null,null,""]
[null,null,"",null,null,null,null,""]
[null,null,"",null,null,null,null,""]
[null,null,"",null,null,null,null,""]
[null,null,"",null,null,null,null,""]
[null,null,"",null,null,null,null,""]
[null,null,"",null,null,null,null,""]
[null,null,"",null,null,null,null,""]
[null,null,"",null,null,null,null,""]
[null,null,"",null,null,null,null,""]
[null,null,"",null,null,null,null,""]
[]
[null,null,null,"مسئول شئون الطلاب",null,null,null,null,"مدير المدرسة"]
[null,null,null,{"$f":"Roma7","v":0},null,null,null,null,{"$f":"Roma8","v":0}]

{"sheet":"15","index":17,"n_rows":50,"n_cols":12,"rows_kept":50,"cut":false,"hidden":false,"merged":[[4,4,4,8],[6,4,6,8]]}
[]
[]
[]
[null,null,null,{"$f":"Roma1","v":0},null,null,null,null,null,"بنون","بنات","الجملة"]
[null,null,null,{"$f":"Roma2","v":0},"قائمة بأسماء طلاب فصل",null,null,null,null,{"$f":"COUNTIF(E12:E47,\"ذكر*\")+COUNTIF(J12:J47,\"ذكر*\")","v":0},{"$f":"COUNTIF(E12:E47,\"أنثى*\")+COUNTIF(J12:J47,\"أنثى*\")","v":0},{"$f":"J5+K5","v":0}]
[null,null,null,{"$f":"Roma3","v":0},null,null,null,null,null,"مستجد","باق","الجملة"]
[null,null,null,{"$f":"Roma4","v":0},"((  1  /  15  ))",null,null,null,null,{"$f":"COUNTIF(G12:G47,\"مستجد*\")+COUNTIF(L12:L47,\"مستجد*\")","v":0},{"$f":"COUNTIF(G12:G47,\"باق*\")+COUNTIF(L12:L47,\"باق*\")","v":0},{"$f":"J7+K7","v":0}]
[null,null,null,{"$f":"Roma5","v":0},null,null,null,null,null,"مسلم","مسيحي","الجملة"]
[null,null,null,{"$f":"Roma6","v":0},null,null,null,null,null,{"$f":"COUNTIF(F12:F47,\"مسلم*\")+COUNTIF(K12:K47,\"مسلم*\")","v":0},{"$f":"COUNTIF(F12:F47,\"مسيحي*\")+COUNTIF(K12:K47,\"مسيحي*\")","v":0},{"$f":"J9+K9","v":0}]
[]
[null,null,"م","الاســـــــــــــــم","النوع","الديانة","الحالة","م","الاســـــــــــــــم","النوع","الديانة","الحالة"]
[null,null,{"$f":"IF(D12=\"\",\"\",ROW()-11)","v":""},null,null,null,null,{"$f":"IF(I12=\"\",\"\",ROW()+25)","v":""}]
[null,null,{"$f":"IF(D13=\"\",\"\",ROW()-11)","v":""},null,null,null,null,{"$f":"IF(I13=\"\",\"\",ROW()+25)","v":""}]
[null,null,"",null,null,null,null,""]
[null,null,"",null,null,null,null,""]
[null,null,"",null,null,null,null,""]
[null,null,"",null,null,null,null,""]
[null,null,"",null,null,null,null,""]
[null,null,"",null,null,null,null,""]
[null,null,"",null,null,null,null,""]
[null,null,"",null,null,null,null,""]
[null,null,"",null,null,null,null,""]
[null,null,"",null,null,null,null,""]
[null,null,"",null,null,null,null,""]
[null,null,"",null,null,null,null,""]
[null,null,"",null,null,null,null,""]
[null,null,"",null,null,null,null,""]
[null,null,"",null,null,null,null,""]
[null,null,"",null,null,null,null,""]
[null,null,"",null,null,null,null,""]
[null,null,"",null,null,null,null,""]
[null,null,"",null,null,null,null,""]
[null,null,"",null,null,null,null,""]
[null,null,"",null,null,null,null,""]
[null,null,"",null,null,null,null,""]
[null,null,"",null,null,null,null,""]
[null,null,"",null,null,null,null,""]
[null,null,"",null,null,null,null,""]
[null,null,"",null,null,null,null,""]
[null,null,"",null,null,null,null,""]
[null,null,"",null,null,null,null,""]
[null,null,"",null,null,null,null,""]
[null,null,"",null,null,null,null,""]
[null,null,"",null,null,null,null,""]
[null,null,"",null,null,null,null,""]
[null,null,"",null,null,null,null,""]
[null,null,"",null,null,null,null,""]
[]
[null,null,null,"مسئول شئون الطلاب",null,null,null,null,"مدير المدرسة"]
[null,null,null,{"$f":"Roma7","v":0},null,null,null,null,{"$f":"Roma8","v":0}]

{"sheet":"16","index":18,"n_rows":50,"n_cols":12,"rows_kept":50,"cut":false,"hidden":false,"merged":[[4,4,4,8],[6,4,6,8]]}
[]
[]
[]
[null,null,null,{"$f":"Roma1","v":0},null,null,null,null,null,"بنون","بنات","الجملة"]
[null,null,null,{"$f":"Roma2","v":0},"قائمة بأسماء طلاب فصل",null,null,null,null,{"$f":"COUNTIF(E12:E47,\"ذكر*\")+COUNTIF(J12:J47,\"ذكر*\")","v":0},{"$f":"COUNTIF(E12:E47,\"أنثى*\")+COUNTIF(J12:J47,\"أنثى*\")","v":0},{"$f":"J5+K5","v":0}]
[null,null,null,{"$f":"Roma3","v":0},null,null,null,null,null,"مستجد","باق","الجملة"]
[null,null,null,{"$f":"Roma4","v":0},"((  1  /  16  ))",null,null,null,null,{"$f":"COUNTIF(G12:G47,\"مستجد*\")+COUNTIF(L12:L47,\"مستجد*\")","v":0},{"$f":"COUNTIF(G12:G47,\"باق*\")+COUNTIF(L12:L47,\"باق*\")","v":0},{"$f":"J7+K7","v":0}]
[null,null,null,{"$f":"Roma5","v":0},null,null,null,null,null,"مسلم","مسيحي","الجملة"]
[null,null,null,{"$f":"Roma6","v":0},null,null,null,null,null,{"$f":"COUNTIF(F12:F47,\"مسلم*\")+COUNTIF(K12:K47,\"مسلم*\")","v":0},{"$f":"COUNTIF(F12:F47,\"مسيحي*\")+COUNTIF(K12:K47,\"مسيحي*\")","v":0},{"$f":"J9+K9","v":0}]
[]
[null,null,"م","الاســـــــــــــــم","النوع","الديانة","الحالة","م","الاســـــــــــــــم","النوع","الديانة","الحالة"]
[null,null,{"$f":"IF(D12=\"\",\"\",ROW()-11)","v":""},null,null,null,null,{"$f":"IF(I12=\"\",\"\",ROW()+25)","v":""}]
[null,null,{"$f":"IF(D13=\"\",\"\",ROW()-11)","v":""},null,null,null,null,{"$f":"IF(I13=\"\",\"\",ROW()+25)","v":""}]
[null,null,"",null,null,null,null,""]
[null,null,"",null,null,null,null,""]
[null,null,"",null,null,null,null,""]
[null,null,"",null,null,null,null,""]
[null,null,"",null,null,null,null,""]
[null,null,"",null,null,null,null,""]
[null,null,"",null,null,null,null,""]
[null,null,"",null,null,null,null,""]
[null,null,"",null,null,null,null,""]
[null,null,"",null,null,null,null,""]
[null,null,"",null,null,null,null,""]
[null,null,"",null,null,null,null,""]
[null,null,"",null,null,null,null,""]
[null,null,"",null,null,null,null,""]
[null,null,"",null,null,null,null,""]
[null,null,"",null,null,null,null,""]
[null,null,"",null,null,null,null,""]
[null,null,"",null,null,null,null,""]
[null,null,"",null,null,null,null,""]
[null,null,"",null,null,null,null,""]
[null,null,"",null,null,null,null,""]
[null,null,"",null,null,null,null,""]
[null,null,"",null,null,null,null,""]
[null,null,"",null,null,null,null,""]
[null,null,"",null,null,null,null,""]
[null,null,"",null,null,null,null,""]
[null,null,"",null,null,null,null,""]
[null,null,"",null,null,null,null,""]
[null,null,"",null,null,null,null,""]
[null,null,"",null,null,null,null,""]
[null,null,"",null,null,null,null,""]
[null,null,"",null,null,null,null,""]
[null,null,"",null,null,null,null,""]
[null,null,"",null,null,null,null,""]
[]
[null,null,null,"مسئول شئون الطلاب",null,null,null,null,"مدير المدرسة"]
[null,null,null,{"$f":"Roma7","v":0},null,null,null,null,{"$f":"Roma8","v":0}]

{"sheet":"17","index":19,"n_rows":50,"n_cols":12,"rows_kept":50,"cut":false,"hidden":false,"merged":[[4,4,4,8],[6,4,6,8]]}
[]
[]
[]
[null,null,null,{"$f":"Roma1","v":0},null,null,null,null,null,"بنون","بنات","الجملة"]
[null,null,null,{"$f":"Roma2","v":0},"قائمة بأسماء طلاب فصل",null,null,null,null,{"$f":"COUNTIF(E12:E47,\"ذكر*\")+COUNTIF(J12:J47,\"ذكر*\")","v":0},{"$f":"COUNTIF(E12:E47,\"أنثى*\")+COUNTIF(J12:J47,\"أنثى*\")","v":0},{"$f":"J5+K5","v":0}]
[null,null,null,{"$f":"Roma3","v":0},null,null,null,null,null,"مستجد","باق","الجملة"]
[null,null,null,{"$f":"Roma4","v":0},"((  1  /  17  ))",null,null,null,null,{"$f":"COUNTIF(G12:G47,\"مستجد*\")+COUNTIF(L12:L47,\"مستجد*\")","v":0},{"$f":"COUNTIF(G12:G47,\"باق*\")+COUNTIF(L12:L47,\"باق*\")","v":0},{"$f":"J7+K7","v":0}]
[null,null,null,{"$f":"Roma5","v":0},null,null,null,null,null,"مسلم","مسيحي","الجملة"]
[null,null,null,{"$f":"Roma6","v":0},null,null,null,null,null,{"$f":"COUNTIF(F12:F47,\"مسلم*\")+COUNTIF(K12:K47,\"مسلم*\")","v":0},{"$f":"COUNTIF(F12:F47,\"مسيحي*\")+COUNTIF(K12:K47,\"مسيحي*\")","v":0},{"$f":"J9+K9","v":0}]
[]
[null,null,"م","الاســـــــــــــــم","النوع","الديانة","الحالة","م","الاســـــــــــــــم","النوع","الديانة","الحالة"]
[null,null,{"$f":"IF(D12=\"\",\"\",ROW()-11)","v":""},null,null,null,null,{"$f":"IF(I12=\"\",\"\",ROW()+25)","v":""}]
[null,null,{"$f":"IF(D13=\"\",\"\",ROW()-11)","v":""},null,null,null,null,{"$f":"IF(I13=\"\",\"\",ROW()+25)","v":""}]
[null,null,"",null,null,null,null,""]
[null,null,"",null,null,null,null,""]
[null,null,"",null,null,null,null,""]
[null,null,"",null,null,null,null,""]
[null,null,"",null,null,null,null,""]
[null,null,"",null,null,null,null,""]
[null,null,"",null,null,null,null,""]
[null,null,"",null,null,null,null,""]
[null,null,"",null,null,null,null,""]
[null,null,"",null,null,null,null,""]
[null,null,"",null,null,null,null,""]
[null,null,"",null,null,null,null,""]
[null,null,"",null,null,null,null,""]
[null,null,"",null,null,null,null,""]
[null,null,"",null,null,null,null,""]
[null,null,"",null,null,null,null,""]
[null,null,"",null,null,null,null,""]
[null,null,"",null,null,null,null,""]
[null,null,"",null,null,null,null,""]
[null,null,"",null,null,null,null,""]
[null,null,"",null,null,null,null,""]
[null,null,"",null,null,null,null,""]
[null,null,"",null,null,null,null,""]
[null,null,"",null,null,null,null,""]
[null,null,"",null,null,null,null,""]
[null,null,"",null,null,null,null,""]
[null,null,"",null,null,null,null,""]
[null,null,"",null,null,null,null,""]
[null,null,"",null,null,null,null,""]
[null,null,"",null,null,null,null,""]
[null,null,"",null,null,null,null,""]
[null,null,"",null,null,null,null,""]
[null,null,"",null,null,null,null,""]
[null,null,"",null,null,null,null,""]
[]
[null,null,null,"مسئول شئون الطلاب",null,null,null,null,"مدير المدرسة"]
[null,null,null,{"$f":"Roma7","v":0},null,null,null,null,{"$f":"Roma8","v":0}]